[Event "GER-ch Youth-U14 2022"]
[Site "Willingen"]
[Date "2022.06.11"]
[Round "9.6"]
[White "Hagner, Bennet"]
[Black "Fruth, David"]
[Result "1-0"]
[ECO "B27"]
[WhiteElo "2186"]
[BlackElo "1648"]
[Annotator "TA"]
[PlyCount "95"]
[EventDate "2022.06.05"]
[EventType "swiss"]
[EventRounds "9"]
[EventCountry "GER"]
[SourceTitle "playchess.com"]
[Source "ChessBase"]
[SourceQuality "1"]
[TimeControl "40/4500+30:900+30"]

{[%evp 22,95,49,45,39,43,54,25,92,59,120,106,119,114,108,110,108,125,105,115,201,199,186,163,190,185,226,188,220,162,247,199,206,206,212,207,219,136,158,126,159,105,104,68,97,55,54,20,129,124,125,124,254,250,241,236,1484,1490,1450,1473,1473,1320,1440,1443,29991,1286,1170,1086,1386,1375,1247,1197,854,0,938,929]} 1. e4 {[%emt 0:00:00]} c5 {[%emt 0:00:00]} 2. Nf3 {[%emt 0:00:00]} g6 {[%emt 0:00:00]} 3. d4 {[%emt 0:00:00]} Bg7 {[%emt 0:00:00]} 4. c3 {[%emt 0:00:00]} cxd4 {[%emt 0:00:00]} 5. cxd4 {[%emt 0:00:00]} Nf6 {[%emt 0:00:00]} 6. Nc3 {[%emt 0:00:48]} d6 {[%emt 0:02:42]} 7. h3 {[%emt 0:01:42]} O-O {[%emt 0:08:12]} 8. Be2 {[%emt 0:01:43]} b6 {[%emt 0:13:55]} 9. O-O {[%emt 0:02:29]} Bb7 {[%emt 0:03:06]} 10. Bd3 {[%emt 0:07:47]} Nc6 {[%emt 0:02:01]} 11. Be3 {[%emt 0:10:30]} Nb4 {[%emt 0:05:42]} 12. Bb1 {[%emt 0:00:36]} d5 {[%emt 0:01:05] B50: Sicilian: 2...d6, Miscellaneous.} 13. e5 {[%emt 0:02:14] Black must now prevent Qb3.} Ne4 {[%emt 0:00:24] [#]} 14. Ne2 $146 {[%emt 0:14:03]} ({Predecessor:} 14. Re1 e6 15. Nxe4 dxe4 16. Ng5 Nd3 17. Bxd3 exd3 18. Nf3 Qd7 19. Rc1 Rfc8 20. Qd2 {0-1 (35) Baudrexel,S-Gruebner,C Hofheim 1995}) 14... Kh8 {[%emt 0:02:47]} (14... Nc6 $11 {keeps the balance.}) 15. Ne1 {[%emt 0:07:01] And now f3 would win.} Ba6 {[%emt 0:04:10]} (15... f6 $1 $14) 16. Nd3 $1 $16 {[%emt 0:05:25]} (16. f3 Bxe2 17. Qxe2 Ng3 $15) 16... Bxd3 {[%emt 0:01:39]} (16... Nc6 $2 17. Qa4 Bb7 18. f3 $18) 17. Bxd3 {[%emt 0:00:07] f3 is the strong threat.} f6 {[%emt 0:01:01]} 18. f3 $36 {[%emt 0:01:48][%mdl 2048] White is really pushing.} Ng5 {[%emt 0:08:42]} 19. Bxg5 {[%emt 0:00:35]} fxg5 {[%emt 0:00:50]} 20. Bb5 {[%emt 0:04:57]} a5 {[%emt 0:05:40]} (20... a6 $16) 21. Qb3 $18 {[%emt 0:03:27]} (21. a3 Na6 22. Rc1 Nc7 $16) 21... Bh6 {[%emt 0:06:24]} 22. g4 {[%emt 0:06:35]} e6 {[%emt 0:00:35]} 23. Rac1 {[%emt 0:00:25]} Na6 {[%emt 0:01:43]} 24. Rc6 {[%emt 0:02:43]} Nc7 {[%emt 0:08:01]} 25. Kg2 {[%emt 0:00:19]} ({Resist} 25. Rxb6 $6 Nxb5 26. Qxb5 Qe7) 25... Rb8 {[%emt 0:02:18]} (25... Qb8 {was worth a try.} 26. a4 Nxb5) 26. Rfc1 {[%emt 0:01:18]} Nxb5 {[%emt 0:00:45]} 27. Qxb5 {[%emt 0:00:04]} Qd7 {[%emt 0:00:50]} 28. Qa6 {[%emt 0:03:50]} Qf7 {[%emt 0:01:30]} 29. Qd3 {[%emt 0:02:10] Active counter play!} Rb7 {[%emt 0:01:03]} 30. a4 {[%emt 0:01:57]} Rfb8 {[%emt 0:00:34]} 31. Rc8+ {[%emt 0:02:00]} (31. Nc3 $142 $1) 31... Bf8 $16 {[%emt 0:00:17]} 32. Rxb8 {[%emt 0:00:45]} Rxb8 {[%emt 0:00:23]} 33. Qb5 {[%emt 0:01:20] Inhibits Qd7.} Bb4 {[%emt 0:00:22]} 34. Qc6 {[%emt 0:00:42]} Rb7 {[%emt 0:01:12] [#]} (34... Bd2 $11 {remains equal.} 35. Rd1 Bb4) 35. Qc8+ $1 {[%emt 0:00:31]} Kg7 {[%emt 0:00:11]} 36. Rc6 {[%emt 0:00:14][%cal Bc1c6,Bc6e6,Be6f6,Bf6f8,Bf8g8,Bg8f8,Bf8a8,Ba8a7][%mdl 32]} b5 {[%emt 0:01:14]} (36... Re7 $16) 37. axb5 $18 {[%emt 0:00:12]} ({And not} 37. Rxe6 Rc7 38. Qb8 Rc2 $11) ({Weaker is} 37. Qxe6 Qxe6 38. Rxe6 bxa4 $15) 37... Rxb5 {[%emt 0:00:02]} 38. Rxe6 {[%emt 0:01:44]} Bf8 $2 {[%emt 0:02:04]} (38... Rb7 39. Rc6 Qd7 40. Qxd7+ Rxd7) 39. Rf6 {[%emt 0:00:09]} Qe7 {[%emt 0:00:21] [#]} 40. Rxf8 $1 {[%emt 0:00:11][%mdl 512] Intending Rg8+ and mate.} Rxb2 {[%emt 0:00:19]} 41. Rg8+ {[%emt 0:16:17]} Kh6 {[%emt 0:15:14]} 42. Kf2 {[%emt 0:00:31][%cal Oh3h4] White threatens h4! and mate.} a4 {[%emt 0:00:18]} 43. Qf8+ {[%emt 0:00:46]} (43. h4 $142 Rd2 44. hxg5+ Kxg5 45. Qc1 Qb4 46. Kg3 h5 47. Rh8 hxg4 {[#]} 48. Qc8 $1 Rxd4 49. Qd8+ Qe7 50. Qxe7+ Kf5 51. Nxd4#) 43... Qxf8 {[%emt 0:00:05]} 44. Rxf8 {[%emt 0:00:08]} a3 {[%emt 0:00:03]} 45. Ra8 {[%emt 0:00:08]} a2 {[%emt 0:00:06]} 46. Ke3 {[%emt 0:00:19]} Rb3+ {[%emt 0:00:48]} 47. Kf2 {[%emt 0:01:15]} Rb2 {[%emt 0:00:10]} 48. Ra7 {[%emt 0:00:01] Weighted Error Value: White=0.18 (very precise) /Black=0.59} 1-0

[Event "GER-ch Youth-U14 2022"]
[Site "Willingen"]
[Date "2022.06.11"]
[Round "9.7"]
[White "Haubold, Christian Lucas"]
[Black "Wunderlich, Elias"]
[Result "0-1"]
[ECO "C07"]
[WhiteElo "1921"]
[BlackElo "1619"]
[Annotator "TA"]
[PlyCount "96"]
[EventDate "2022.06.05"]
[EventType "swiss"]
[EventRounds "9"]
[EventCountry "GER"]
[SourceTitle "playchess.com"]
[Source "ChessBase"]
[SourceQuality "1"]
[TimeControl "40/4500+30:900+30"]

{[%evp 23,96,29,31,28,30,0,9,2,20,1,83,85,127,47,88,0,0,0,24,-41,-42,-43,16,-14,-11,-333,-332,-322,-334,-337,-323,-289,-285,-307,-305,-445,-250,-493,-492,-487,-502,-491,-472,-825,-816,-1232,-1231,-2462,-2356,-5131,-4586,-1959,-1940,-2090,-2005,-6520,-6512,-6420,-6404,-6303,-5764,-6223,-6213,-5739,-5713,-5193,-5189,-5527,-5202,-29977,-29978,-29978,-29977,-29978,-29977]} 1. e4 {[%emt 0:00:00]} e6 {[%emt 0:00:00]} 2. d4 {[%emt 0:00:00]} d5 {[%emt 0:00:00]} 3. Nd2 {[%emt 0:00:00]} c5 {[%emt 0:00:00]} 4. exd5 {[%emt 0:00:00]} Qxd5 {[%emt 0:00:00]} 5. Ngf3 {[%emt 0:00:00]} cxd4 {[%emt 0:00:00]} 6. Bc4 {[%emt 0:00:00]} Qd6 {[%emt 0:00:00]} 7. O-O {[%emt 0:00:00]} Nf6 {[%emt 0:00:00]} 8. Nb3 {[%emt 0:00:00]} Nc6 {[%emt 0:00:00]} 9. Nbxd4 {[%emt 0:00:00]} Nxd4 {[%emt 0:00:00]} 10. Nxd4 {[%emt 0:00:00]} Be7 {[%emt 0:00:00]} 11. c3 {[%emt 0:00:00]} O-O {[%emt 0:00:00]} 12. Qf3 {[%emt 0:00:00]} Qc7 {[%emt 0:00:00]} 13. Bb3 {[%emt 0:00:00] C07: French Tarrasch: 3...c5, 4 Ngf3 and 4 exd5 Qxd5.} a5 $1 {[%emt 0:00:00][%cal Ba7a5,Ba5a4][%mdl 4] is recently more successful than 13...Bd7.} 14. Bg5 {[%emt 0:07:00]} a4 {[%emt 0:00:00] And now ...e5 would win.} 15. Bc2 {[%emt 0:00:28] [#] The position is equal.} h6 $146 {[%emt 0:00:00]} ({Predecessor:} 15... Ra5 16. Bh4 Bd7 17. Rad1 Rd8 18. Rfe1 Be8 19. Be4 Nxe4 20. Bxe7 Qxe7 21. Rxe4 {½-½ (21) Gukesh,D (2536)-Bluebaum,M (2610) Karlsruhe 2019}) 16. Bf4 {[%emt 0:05:42]} Qa5 {[%emt 0:00:00]} (16... e5 $11 {keeps the balance.} 17. Bg3 a3) 17. Rfe1 $16 {[%emt 0:02:14]} Nd5 {[%emt 0:00:00]} 18. Bd2 {[%emt 0:21:42]} (18. Be5 $16) 18... Re8 {[%emt 0:14:46]} 19. Re5 {[%emt 0:14:06]} ({White should try} 19. Qd3 $16 {White threatens Qh7+ and mate.} Nf6 20. Bf4) 19... Bf6 $11 {[%emt 0:05:39]} 20. Re4 {[%emt 0:08:15]} Bd7 {[%emt 0:01:38]} 21. Rg4 (21. Rd1 $11) 21... h5 $1 $15 {[%emt 0:28:12]} (21... e5 22. Nf5 h5 23. Nh6+ Kf8 24. Rxg7 Kxg7 25. Qxh5 $16) 22. Re4 {[%emt 0:06:43]} Ne7 {[%emt 0:00:31]} (22... g6 $15) 23. Re2 {[%emt 0:09:11]} e5 {[%emt 0:01:46]} 24. Nf5 {[%emt 0:06:03][%mdl 8192] Loses the game.} ({Avoid the trap} 24. Qxh5 $2 g6 25. Qf3 Qb6 $19) (24. Qxb7 $11 Qd8 25. Nf3) 24... Nxf5 $19 {[%emt 0:00:07]} 25. Bxf5 {[%emt 0:00:21] [#]} e4 $1 {[%emt 0:00:11]} 26. Bxe4 {[%emt 0:02:02]} Bg4 {[%emt 0:00:09]} 27. Qd3 {[%emt 0:00:48]} Bxe2 {[%emt 0:01:37]} 28. Qxe2 {[%emt 0:00:32]} Rad8 {[%emt 0:00:20][%cal Ba8d8,Bd8d2,Bd2a2][%mdl 32]} 29. Re1 {[%emt 0:02:15] [#]} (29. Be1 $142) 29... Qc5 {[%emt 0:08:30]} (29... Rxe4 $142 $1 {[%mdl 512]} 30. Qxe4 Rxd2 31. Qxb7 g6) 30. Kf1 {[%emt 0:01:57] [#]} (30. Bc1) 30... Rxe4 $1 {[%emt 0:03:01][%mdl 512]} 31. Qxe4 {[%emt 0:00:38]} Rxd2 {[%emt 0:00:13][%csl Gd2][%cal Rc5f2]} 32. Qe8+ {[%emt 0:00:37]} Kh7 {[%emt 0:00:02][%csl Gd2][%cal Rc5f2]} 33. Qe4+ {[%emt 0:00:10]} (33. Re2 $142 Rd1+ 34. Re1) 33... g6 {[%emt 0:00:14][%csl Gd2][%cal Rc5f2]} 34. Qf3 {[%emt 0:00:37]} Kg7 {[%emt 0:00:26]} 35. b3 {[%emt 0:00:57]} Rxa2 {[%emt 0:00:46]} 36. bxa4 {[%emt 0:00:10]} Qc4+ {[%emt 0:00:29]} 37. Kg1 {[%emt 0:00:19]} Qxc3 {[%emt 0:00:20][%cal Rc3e1]} 38. Rb1 {[%emt 0:00:43]} Ra1 {[%emt 0:00:28]} 39. Qd1 {[%emt 0:00:08]} Rxb1 {[%emt 0:00:25]} 40. Qxb1 {[%emt 0:00:07]} Qa1 {[%emt 0:00:05]} 41. Qxa1 {[%emt 0:15:14]} Bxa1 {[%emt 0:15:10][%mdl 4096] Endgame KB-KP} 42. Kf1 {[%emt 0:00:06]} Kf6 {[%emt 0:00:23]} 43. Ke2 {[%emt 0:00:07]} Ke5 {[%emt 0:00:11]} 44. Kd3 {[%emt 0:00:05]} Kd5 {[%emt 0:00:12] aiming for ...Kc5.} 45. f3 {[%emt 0:00:27]} g5 {[%emt 0:00:58]} 46. g4 {[%emt 0:00:23]} hxg4 {[%emt 0:00:49] Black mates.} 47. fxg4 {[%emt 0:00:06]} Bd4 {[%emt 0:00:06]} 48. h3 {[%emt 0:00:09]} b6 {[%emt 0:00:11] Weighted Error Value: White=1.42/Black=0.27 (precise)} 0-1

[Event "GER-ch Youth-U14 2022"]
[Site "Willingen"]
[Date "2022.06.11"]
[Round "9.8"]
[White "Huber, Benedikt"]
[Black "Haubold, Sebastian Marcel"]
[Result "0-1"]
[ECO "B90"]
[WhiteElo "2288"]
[BlackElo "1869"]
[Annotator "TA"]
[PlyCount "76"]
[EventDate "2022.06.05"]
[EventType "swiss"]
[EventRounds "9"]
[EventCountry "GER"]
[SourceTitle "playchess.com"]
[Source "ChessBase"]
[SourceQuality "1"]
[TimeControl "40/4500+30:900+30"]

{[%evp 15,76,6,13,11,2,16,0,0,18,0,0,0,1,0,20,-2,15,-36,-33,-21,-10,-17,-23,-29,-31,-31,-31,-29,-9,-8,-4,-26,0,0,0,-14,-7,-18,-8,-37,0,0,0,9,19,0,0,0,0,-6,31,17,46,37,35,0,0,0,0,-29992,-29993,-29993,-29994]} 1. e4 {[%emt 0:00:00]} c5 {[%emt 0:00:00]} 2. Nf3 {[%emt 0:00:00]} d6 {[%emt 0:00:00]} 3. d4 {[%emt 0:00:00]} cxd4 {[%emt 0:00:00]} 4. Nxd4 {[%emt 0:00:00]} Nf6 {[%emt 0:00:00]} 5. Nc3 {[%emt 0:00:00]} a6 {[%emt 0:00:00]} 6. Bd3 {[%emt 0:00:00]} e5 {[%emt 0:00:00]} 7. Nde2 {[%emt 0:00:00]} Be7 {[%emt 0:00:00]} 8. O-O {[%emt 0:00:00]} O-O {[%emt 0:00:00]} 9. Ng3 {[%emt 0:00:00] B90: Sicilian Najdorf: Unusual White 6th moves, 6 Be3 Ng4 and 6 Be3 e5.} Be6 {[%emt 0:00:00]} 10. Nd5 {[%emt 0:00:00]} Bxd5 {[%emt 0:00:00]} 11. exd5 {[%emt 0:00:00] The position is equal.} g6 {[%emt 0:00:00] Prevents Nf5.} 12. Bh6 {[%emt 0:00:00]} Re8 {[%emt 0:00:00]} 13. c4 {[%emt 0:00:00]} Nbd7 {[%emt 0:00:00][%cal Bb8d7,Bd7c5,Bc5d3][%mdl 32]} 14. a3 {[%emt 0:00:00] [#]} Rb8 $146 {[%emt 0:00:00]} ({Predecessor:} 14... a5 15. b3 Bf8 16. Bxf8 Kxf8 17. Re1 Kg7 18. Qd2 Ng4 19. b4 b6 20. Bc2 f5 {1-0 (40) Schneider,J (2263)-Ziegenfuss,A (2260) Darmstadt 2022}) 15. Qe2 {[%emt 0:30:09]} Nc5 {[%emt 0:11:46]} 16. Rad1 {[%emt 0:06:51]} (16. Bc2 $11) 16... Nxd3 $15 {[%emt 0:08:17]} 17. Rxd3 {[%emt 0:05:39]} Qc8 {[%emt 0:12:30]} 18. Rc3 {[%emt 0:07:33]} Ng4 {[%emt 0:05:35]} 19. Be3 {[%emt 0:00:44]} f5 {[%emt 0:02:44]} 20. Ba7 {[%emt 0:09:35]} Ra8 {[%emt 0:00:13]} 21. Bb6 {[%emt 0:00:09]} Bd8 {[%emt 0:08:57]} 22. Bxd8 {[%emt 0:02:55]} Qxd8 {[%emt 0:01:06]} 23. b4 {[%emt 0:07:20]} Qh4 {[%emt 0:06:33][%csl Gg4][%cal Rh4h2] [#]} 24. h3 {[%emt 0:00:41]} Nf6 {[%emt 0:00:31]} 25. Rd1 {[%emt 0:03:58]} e4 {[%emt 0:04:11]} 26. Rd4 {[%emt 0:02:49]} Qf4 {[%emt 0:05:10]} 27. Qe3 {[%emt 0:03:16]} Qe5 {[%emt 0:00:31] And now ...f4 would win.} 28. Ne2 {[%emt 0:01:08] Prevents f4.} Nh5 {[%emt 0:05:37]} 29. g3 {[%emt 0:00:41] Against f4} Qf6 {[%emt 0:03:19]} 30. c5 {[%emt 0:03:37][%cal Bc4c5,Bc5c6,Bc6b7][%mdl 32]} g5 $1 {[%emt 0:01:59] Threatens to win with ...f4.} 31. Qd2 {[%emt 0:01:16]} f4 {[%emt 0:00:31][%cal Oe4e3,Bf5f4,Bf4f3,Bf3e2][%mdl 32] Strongly threatening ...e3!} 32. g4 {[%emt 0:00:07]} Ng7 {[%emt 0:04:42]} 33. c6 $36 {[%emt 0:01:07][%mdl 2048] White has some pressure.} Qe5 {[%emt 0:01:58]} 34. cxb7 {[%emt 0:01:09]} Rab8 {[%emt 0:00:08]} 35. Rc7 {[%emt 0:01:02] Hoping for Qc3.} (35. Rcc4 $5 {[%cal Rd4e4]} e3 36. fxe3 fxe3 37. Qc1 $14) 35... e3 $1 {[%emt 0:00:11]} 36. fxe3 {[%emt 0:00:07]} ({But not} 36. Qd3 $2 f3 37. Qxe3 (37. Ng3 $2 e2 $19) 37... fxe2 $19) 36... f3 {[%emt 0:00:36] Dancing on a razor blade.} 37. Qc2 {[%emt 0:01:33][%mdl 8192] [#]} (37. Nf4 $11) 37... Qxe3+ {[%emt 0:00:15]} 38. Kh1 {[%emt 0:00:15]} fxe2 {[%emt 0:00:15] Weighted Error Value: White=0.37/Black=0.06 (flawless)} 0-1

[Event "GER-ch Youth-U14 2022"]
[Site "Willingen"]
[Date "2022.06.11"]
[Round "9.9"]
[White "Mueller, Maximilian"]
[Black "Campora, Daniel H."]
[Result "1/2-1/2"]
[ECO "B23"]
[WhiteElo "2299"]
[BlackElo "2397"]
[Annotator "TA"]
[PlyCount "83"]
[EventDate "2022.06.05"]
[EventType "swiss"]
[EventRounds "9"]
[EventCountry "GER"]
[SourceTitle "playchess.com"]
[Source "ChessBase"]
[SourceQuality "1"]
[TimeControl "40/4500+30:900+30"]

{[%evp 12,83,63,54,86,83,106,16,39,8,50,6,40,-17,84,43,39,32,41,18,63,52,151,29,86,93,73,52,62,60,58,56,64,44,56,47,172,158,162,-72,-73,-81,-69,-60,-70,-65,-80,-75,-72,-79,-15,-28,0,0,0,0,0,0,22,16,24,22,22,0,0,0,0,0,0,0,0,0,0,0]} 1. e4 {[%emt 0:00:00]} c5 {[%emt 0:00:00]} 2. Nc3 {[%emt 0:00:00]} e6 {[%emt 0:00:00]} 3. f4 {[%emt 0:00:00]} Nc6 {[%emt 0:00:00]} 4. Bb5 {[%emt 0:00:00]} a6 {[%emt 0:00:00]} 5. Bxc6 {[%emt 0:00:00]} bxc6 {[%emt 0:00:00]} 6. Nf3 {[%emt 0:00:00]} d5 {[%emt 0:00:00]} 7. d3 {[%emt 0:00:00]} Bd6 {[%emt 0:01:55] B23: Closed Sicilian: Lines without g3.} 8. O-O {[%emt 0:00:00]} Ne7 {[%emt 0:00:23]} 9. Ne2 {[%emt 0:09:46]} (9. b3 $16) 9... O-O {[%emt 0:14:13] [#]} 10. c4 $146 {[%emt 0:03:55]} ({Predecessor:} 10. c3 Ng6 11. Qc2 a5 12. Be3 Ba6 13. e5 Be7 {½-½ (13) Braggaar,L-Ten Vergert,P Hengelo 2004}) 10... f6 {[%emt 0:08:28]} 11. Qe1 {[%emt 0:05:46]} Bd7 {[%emt 0:17:31]} 12. Be3 {[%emt 0:04:53]} (12. Nc3 $14) 12... Nc8 {[%emt 0:02:10]} (12... Ng6 $11) 13. Ng3 {[%emt 0:03:02] White is more active.} Be8 {[%emt 0:04:29]} 14. Rd1 {[%emt 0:14:33]} Bf7 {[%emt 0:05:29]} 15. b3 {[%emt 0:12:12]} d4 {[%emt 0:06:30]} 16. Bd2 {[%emt 0:01:32]} e5 {[%emt 0:04:37]} (16... Be7 $1 $14) 17. f5 {[%emt 0:06:02]} (17. fxe5 $16 fxe5 18. Ng5) 17... Qb6 {[%emt 0:03:24]} (17... Nb6 $11) 18. Ne2 $1 $16 {[%emt 0:00:11]} a5 {[%emt 0:00:07]} 19. Nc1 {[%emt 0:00:58]} a4 {[%emt 0:00:16]} 20. Qh4 {[%emt 0:00:05]} axb3 {[%emt 0:00:52]} 21. axb3 {[%emt 0:00:09]} Be7 {[%emt 0:03:05][%cal Bd6e7,Be7f8,Bf8g7][%mdl 32]} 22. g4 {[%emt 0:00:24]} Ra7 {[%emt 0:00:12]} 23. Kh1 {[%emt 0:01:38]} g5 {[%emt 0:02:54]} (23... Qd8 $1 $14) 24. Qh6 $18 {[%emt 0:05:25][%cal Rf3g5] Black must now prevent Nxg5!} Re8 {[%emt 0:03:17] [#]} 25. h4 $2 {[%emt 0:00:47] [#]} (25. Bxg5 $1 $18 {[%mdl 512]} fxg5 26. Nxe5 (26. f6 Bf8 $14)) 25... Bf8 $1 $17 {[%emt 0:00:09]} (25... gxh4 $2 26. g5 (26. Nxe5 fxe5 27. g5 Bf8 $11) 26... Bf8 27. Qxh4 $18) 26. Qxf6 {[%emt 0:00:06] [#]} Bg7 $1 {[%emt 0:00:03]} 27. Ba5 {[%emt 0:00:51]} Qxa5 {[%emt 0:01:11]} 28. Qxg5 {[%emt 0:00:11]} h6 {[%emt 0:00:04]} 29. Qd2 {[%emt 0:00:07]} Qxd2 {[%emt 0:00:12]} 30. Rxd2 {[%emt 0:00:08]} Kf8 {[%emt 0:02:55]} (30... Nb6 $17 31. g5 Bh5) 31. g5 $11 {[%emt 0:00:16]} hxg5 {[%emt 0:00:45]} 32. hxg5 {[%emt 0:00:05]} Bh5 {[%emt 0:00:33]} 33. Kg2 {[%emt 0:00:08]} Bxf3+ {[%emt 0:00:06]} 34. Kxf3 {[%emt 0:00:06]} Kf7 {[%emt 0:01:01]} 35. Rh2 {[%emt 0:03:34] Threatening Kg4.} Rh8 {[%emt 0:00:33]} 36. Rxh8 Bxh8 {[%emt 0:00:01] The position is equal.} 37. f6 {[%emt 0:00:13]} Kg6 {[%emt 0:00:47] Threatens to win with ...Nd6.} (37... Nd6 $5 {[%cal Rf7g6]} 38. Rh1 Bxf6 39. gxf6 Ke6 $11) 38. Rh1 {[%emt 0:00:28]} Rh7 {[%emt 0:00:14]} 39. Rxh7 {[%emt 0:00:11]} Kxh7 {[%emt 0:00:02]} 40. Kg4 {[%emt 0:00:06] Kf5 is the strong threat.} Kg6 {[%emt 0:00:13]} 41. Ne2 {[%emt 0:15:09]} Nd6 {[%emt 0:16:43] Strongly threatening ...Nf7.} 42. Ng1 $1 {[%emt 0:00:05] Weighted Error Value: White=0.29 (precise) /Black=0.23 (precise)} 1/2-1/2

[Event "GER-ch Youth-U14 2022"]
[Site "Willingen"]
[Date "2022.06.11"]
[Round "9.10"]
[White "Udelnov, Valentin"]
[Black "Torosyan, Bagrat"]
[Result "1/2-1/2"]
[ECO "B90"]
[WhiteElo "1901"]
[BlackElo "1683"]
[Annotator "TA"]
[PlyCount "108"]
[EventDate "2022.06.05"]
[EventType "swiss"]
[EventRounds "9"]
[EventCountry "GER"]
[SourceTitle "playchess.com"]
[Source "ChessBase"]
[SourceQuality "1"]
[TimeControl "40/4500+30:900+30"]

{[%evp 21,108,25,6,-17,12,6,4,0,0,0,0,0,0,10,19,-68,28,-38,17,-73,-80,-97,-94,-94,-92,-147,-42,-81,-81,-90,-51,-105,0,0,0,0,0,0,6,-51,0,-6,0,0,0,0,0,0,0,0,46,-44,-26,-16,-27,-110,-131,-131,-94,-63,-75,-83,-93,-213,-220,-220,-209,-210,-146,-144,-156,-152,-166,-223,-160,-150,0,-193,-154,-183,-212,-256,0,-175,-138,-158,-90,-220,-114]} 1. e4 {[%emt 0:00:00]} c5 {[%emt 0:00:00]} 2. Nf3 {[%emt 0:00:00]} d6 {[%emt 0:00:00]} 3. d4 {[%emt 0:00:00]} cxd4 {[%emt 0:00:00]} 4. Nxd4 {[%emt 0:00:00]} Nf6 {[%emt 0:00:00]} 5. Nc3 {[%emt 0:00:00]} a6 {[%emt 0:00:00]} 6. Be3 {[%emt 0:00:00]} e5 {[%emt 0:00:00]} 7. Nb3 {[%emt 0:00:00]} Be6 {[%emt 0:00:00]} 8. f3 {[%emt 0:00:00]} Be7 {[%emt 0:00:00]} 9. Qd2 {[%emt 0:00:00]} O-O {[%emt 0:00:00]} 10. O-O-O {[%emt 0:00:00]} Nbd7 {[%emt 0:00:00]} 11. g4 {[%emt 0:00:00][%cal Bg2g4,Bg4g5][%mdl 32]} b5 {[%emt 0:00:00]} 12. Kb1 {[%emt 0:00:00] B90: Sicilian Najdorf: Unusual White 6th moves, 6 Be3 Ng4 and 6 Be3 e5.} Nb6 $1 {[%emt 0:00:00][%mdl 4] outshines the older 12...b4.} (12... b4 $5 {[%cal Rb4c3]} 13. Na4 Rb8 $11) 13. g5 {[%emt 0:00:00]} Nh5 {[%emt 0:00:00]} 14. Nd5 {[%emt 0:10:21] The position is equal.} Nxd5 {[%emt 0:00:00]} 15. exd5 {[%emt 0:00:09]} Bf5 {[%emt 0:00:00]} 16. Na5 {[%emt 0:01:38]} f6 {[%emt 0:00:00][%cal Rf6g5]} 17. Nc6 {[%emt 0:00:59]} Qc7 {[%emt 0:00:00] [#]} 18. Rg1 $146 {[%emt 0:05:36]} (18. h4 $11) ({Predecessor:} 18. gxf6 Bxf6 19. Bd3 Qd7 20. Rhg1 Rae8 21. Be4 Nf4 22. Rc1 g6 23. c4 Kh8 24. c5 dxc5 25. Bxc5 {1-0 (44) Abdusattorov,N (2627)-Drygalov,S (2490) Chess.com INT 2020}) 18... Kh8 {[%emt 0:18:23]} (18... fxg5 $15 19. Bxg5 (19. Nxe7+ Qxe7 20. Bxg5 Qc7 $15) 19... Bxg5 20. Qxg5 Qf7) 19. Bd3 {[%emt 0:03:39]} (19. h4 $11) 19... Bxd3 {[%emt 0:06:57]} (19... fxg5 $1 $15 20. Nxe7 (20. Bxg5 Bxg5 21. Rxg5 Bxd3 $15) 20... Bxd3) 20. Qxd3 {[%emt 0:02:01] [#]} (20. cxd3 $11 {remains equal.} fxg5 21. d4 (21. Bxg5 Bxg5 22. Rxg5 Nf4 $15)) 20... fxg5 $1 $17 {[%emt 0:01:37]} 21. Bxg5 {[%emt 0:01:25]} Bxg5 {[%emt 0:00:28]} 22. Rxg5 {[%emt 0:00:06]} g6 {[%emt 0:02:34]} 23. Qe3 {[%emt 0:11:10] [#]} (23. Rgg1 $142) 23... Rae8 {[%emt 0:10:50]} (23... Qf7 $1 $17 24. Rgg1 Qxf3) 24. Rgg1 {[%emt 0:02:36]} Nf4 {[%emt 0:05:20]} 25. Qe4 {[%emt 0:07:27]} Rc8 {[%emt 0:04:04]} 26. c3 {[%emt 0:28:52]} ({White should play} 26. Rd2 $15) 26... Nxd5 {[%emt 0:04:29]} 27. Qxd5 $11 {[%emt 0:02:14] aiming for Nb4.} Qxc6 {[%emt 0:00:11]} 28. Qxd6 {[%emt 0:00:09]} Qxd6 {[%emt 0:00:18]} 29. Rxd6 {[%emt 0:00:08]} Rxf3 $17 {[%emt 0:00:11][%mdl 4096] Endgame KRR-KRR} 30. Re6 {[%emt 0:00:05]} (30. Rxa6 $11 Rc5 31. Rd1) 30... Rd8 {[%emt 0:03:37]} (30... Rf2 $15 31. Rxa6 Rxh2) 31. Rg2 {[%emt 0:00:21]} Re3 {[%emt 0:08:22]} 32. Rxa6 {[%emt 0:00:31]} e4 {[%emt 0:00:48][%cal Be5e4,Be4e3][%mdl 32]} 33. Re6 {[%emt 0:00:47]} Re1+ {[%emt 0:00:12]} 34. Kc2 {[%emt 0:00:06]} e3 {[%emt 0:00:15]} 35. Re7 {[%emt 0:04:07]} Rf8 {[%emt 0:03:01]} (35... Rd5 $11) 36. Rg3 {[%emt 0:05:24]} ({White should try} 36. Kb3 $1 $14) 36... Rf2+ {[%emt 0:01:21]} 37. Kb3 {[%emt 0:00:03]} Ree2 {[%emt 0:02:24]} 38. Rgxe3 {[%emt 0:00:21]} (38. Ka3 $11) 38... Rxb2+ {[%emt 0:00:37]} 39. Ka3 {[%emt 0:00:03]} Rxa2+ {[%emt 0:00:08]} 40. Kb4 {[%emt 0:00:05]} Rab2+ {[%emt 0:01:37]} 41. Kc5 {[%emt 0:15:10]} Rf5+ {[%emt 0:15:53]} 42. Kc6 {[%emt 0:00:00]} (42. R3e5 $17) 42... Rxh2 $19 {[%emt 0:00:00]} 43. Rb7 {[%emt 0:00:00] Threatening mate with Re8+.} Rf6+ {[%emt 0:00:00]} 44. Kc5 {[%emt 0:00:00] White threatens Re8+ and mate.} Rh5+ {[%emt 0:00:00]} 45. Kb4 {[%emt 0:00:00] Intending Re8+ and mate.} Rf4+ {[%emt 0:00:00]} 46. Kb3 {[%emt 0:00:00] White wants to mate with Re8+.} Rf8 {[%emt 0:00:00] Prevents Re8.} 47. Ree7 {[%emt 0:00:00]} (47. Re4 $142) 47... Rh1 {[%emt 0:00:00]} 48. Kc2 {[%emt 0:00:00]} Rh5 {[%emt 0:00:00]} 49. Kb3 {[%emt 0:00:00]} Rc8 {[%emt 0:00:00]} 50. Red7 {[%emt 0:00:00]} Rh3 {[%emt 0:00:00]} 51. Kb2 {[%emt 0:00:00]} Rh5 {[%emt 0:00:00]} ({Worse is} 51... Rhxc3 52. Rxh7+ Kg8 53. Rbg7+ Kf8 54. Rf7+ Kg8 55. Rfg7+ (55. Rhg7+ Kh8 $11) 55... Kf8 56. Rf7+ Kg8 57. Rhg7+ Kh8 58. Rh7+ Kg8 $11) 52. Kb3 {[%emt 0:00:00]} Rh1 {[%emt 0:00:00] Hoping for ...g5.} 53. Kc2 {[%emt 0:00:00]} Rh2+ {[%emt 0:00:00]} (53... g5 $142 {...Rg8 is the strong threat.} 54. Rd5 g4) 54. Kb3 {[%emt 0:00:06]} (54. Kd3 $17 {was the only defense.}) 54... Rh5 {[%emt 0:00:00] Weighted Error Value: White=0.32/Black=0.35} (54... Rg8 $19 55. Rd4 g5) 1/2-1/2